bitfinex-derivatives/quotes_SOLF0:USTF0_20250424
["timestamp","ask_amount","ask_price","bid_price","bid_amount"]
[1745513762661,30.9375,151.51,151.48,6.5985]
[1745513763066,24.34,151.51,151.47,8.97096409]
[1745513763267,8.97096409,151.56,151.5,8.97096409]
[1745513763562,24.36,151.56,151.52,8.97096409]
[1745513763756,6.5961,151.54,151.51,6.5972]
[1745513763958,8.97096409,151.55,151.49,8.97096409]
[1745513764255,8.97096409,151.53,151.49,8.97096409]
[1745513764454,15.56726409,151.54,151.49,8.97096409]
[1745513764664,6.5963,151.54,151.5,8.97096409]
[1745513764866,15.56676409,151.55,151.51,8.97096409]
[1745513765664,15.56676409,151.55,151.52,6.5969]
[1745513766165,6.5961,151.54,151.51,15.56816409]
[1745513766858,8.97096409,151.55,151.51,8.97096409]
[1745513767963,8.97096409,151.55,151.5,8.97096409]
[1745513768262,26.3176,151.56,151.5,8.97096409]
[1745513768466,8.97096409,151.54,151.47,3.7837]
[1745513768764,8.97096409,151.54,151.48,8.97096409]
[1745513769066,8.97096409,151.52,151.48,8.97096409]
[1745513769266,8.97096409,151.51,151.47,8.97096409]
[1745513769765,8.97096409,151.49,151.44,8.97096409]
[1745513770064,8.97096409,151.47,151.42,37.22166409]
[1745513770564,8.97096409,151.49,151.45,8.97096409]
[1745513770768,15.56926409,151.49,151.46,6.5993]
[1745513771267,15.56926409,151.49,151.45,8.97096409]
[1745513771268,15.56896409,151.5,151.47,6.599]
[1745513771572,33.33096409,151.52,151.48,8.97096409]
[1745513771870,39.92816409,151.52,151.49,6.5979]
[1745513772166,30.9572,151.52,151.49,8.97096409]
[1745513772465,30.9572,151.52,151.49,15.56906409]
[1745513773266,30.9572,151.52,151.49,6.5981]
[1745513773466,6.5974,151.51,151.48,6.5986]
[1745513773665,24.36,151.52,151.46,24.36]
[1745513773866,6.5976,151.51,151.48,6.5986]
[1745513774268,24.36,151.52,151.48,6.5986]
[1745513774768,24.36,151.52,151.46,24.36]
[1745513775068,24.36,151.52,151.44,14.04056602]
[1745513775268,14.04056602,151.51,151.43,24.36]
[1745513775467,6.5994,151.47,151.44,6.6003]
[1745513775668,14.04056602,151.49,151.43,24.36]
[1745513775867,6.5998,151.46,151.43,6.6006]
[1745513777566,6.6002,151.45,151.42,6.6011]
[1745513778070,30.9588,151.48,151.45,6.5996]
[1745513778262,24.36,151.48,151.45,6.5996]
[1745513778567,24.36,151.48,151.42,14.04056602]
[1745513778767,6.5994,151.47,151.45,6.5999]
[1745513778973,24.36,151.48,151.45,6.5999]
[1745513779270,6.5992,151.47,151.44,6.6002]
[1745513779569,24.36,151.48,151.41,1.853]
[1745513779771,24.36,151.48,151.4,38.40056602]
[1745513780071,6.5998,151.46,151.42,6.6009]
[1745513780262,24.36,151.48,151.42,6.6009]
[1745513780466,6.6001,151.45,151.42,6.6009]
[1745513780968,6.6001,151.45,151.43,6.6008]
[1745513781170,6.6001,151.45,151.4,38.40056602]
[1745513783475,6.6005,151.44,151.4,38.40056602]
[1745513783873,6.6005,151.44,151.4,24.36]
[1745513784172,14.04056602,151.47,151.38,1.9593]
[1745513784365,14.04056602,151.45,151.38,1.9593]
[1745513784567,14.04056602,151.41,151.33,24.36]
[1745513784764,24.36,151.4,151.31,3.8993]
[1745513784970,24.36,151.4,151.3,30.0775909]
[1745513784971,6.6059,151.32,151.3,30.0775909]
[1745513785169,24.36,151.35,151.3,30.0775909]
[1745513786074,6.6061,151.32,151.3,30.0775909]
[1745513786269,24.36,151.35,151.3,30.0775909]
[1745513787078,6.6061,151.31,151.3,30.0775909]
[1745513787778,30.9661,151.31,151.3,30.0775909]
[1745513787973,30.9661,151.31,151.26,152.4501809]
[1745513787974,24.36,151.31,151.26,152.4501809]
[1745513788172,14.04056602,151.29,151.26,152.4501809]
[1745513788674,6.6074,151.28,151.26,152.4501809]
[1745513788876,14.04056602,151.29,151.21,3.7866]
[1745513789372,6.6092,151.24,151.21,3.7866]
[1745513789583,14.04056602,151.29,151.21,3.7866]
[1745513789877,6.6087,151.26,151.23,14.04056602]
[1745513790279,40.38256602,151.31,151.23,14.04056602]
[1745513790478,24.36,151.31,151.25,14.04056602]
[1745513790978,6.6076,151.28,151.25,14.04056602]
[1745513791575,24.36,151.31,151.25,14.04056602]
[1745513791780,38.40056602,151.31,151.23,38.40056602]
[1745513791971,38.40056602,151.31,151.23,24.36]
[1745513792176,6.6097,151.23,151.21,17.82716602]
[1745513792476,14.04056602,151.29,151.21,3.7866]
[1745513794483,6.6101,151.22,151.21,3.7866]
[1745513794681,24.38,151.27,151.21,3.7866]
[1745513795279,24.38,151.27,151.06,13.2341]
[1745513795280,38.42056602,151.27,151.18,14.04056602]
[1745513795584,14.04056602,151.25,151.16,14.04056602]
[1745513795786,14.04056602,151.25,151.17,6.44327492]
[1745513795986,14.04056602,151.25,151.16,14.04056602]
[1745513796182,40.33856602,151.27,151.18,14.04056602]
[1745513797988,6.6112,151.2,151.18,14.04056602]
[1745513799290,40.33856602,151.27,151.18,14.04056602]
[1745513799985,6.6113,151.2,151.18,14.04056602]
[1745513800391,15.95856602,151.27,151.19,6.6113]
[1745513800697,26.289,151.28,151.22,14.04056602]
[1745513801692,6.6094,151.24,151.22,14.04056602]
[1745513802194,6.6096,151.23,151.22,14.04056602]
[1745513802593,26.289,151.28,151.2,38.42056602]
[1745513802793,26.289,151.28,151.2,14.04056602]
[1745513803294,26.289,151.28,151.17,24.38]
[1745513803295,14.04056602,151.27,151.18,14.04056602]
[1745513803694,14.04056602,151.27,151.18,20.65216602]
[1745513803995,3.9085,151.28,151.2,14.04056602]
[1745513804196,6.609,151.25,151.22,14.04056602]
[1745513804791,6.6092,151.24,151.22,14.04056602]
[1745513804995,24.38,151.27,151.22,14.04056602]
[1745513806100,6.6084,151.26,151.23,6.6095]
[1745513806399,24.38,151.27,151.22,14.04056602]
[1745513807196,24.38,151.31,151.26,14.04056602]
[1745513807393,28.3524,151.34,151.28,14.04056602]
[1745513807599,24.38,151.34,151.3,14.04056602]
[1745513807999,6.6058,151.32,151.3,14.04056602]
[1745513809097,5.801,151.39,151.3,38.42056602]
[1745513809300,5.801,151.39,151.34,14.04056602]
[1745513809599,3.9701,151.44,151.36,14.04056602]
[1745513809799,3.9701,151.44,151.38,14.04056602]
[1745513810000,3.9701,151.44,151.38,20.64356602]
[1745513810202,3.9701,151.44,151.38,14.04056602]
[1745513810404,24.38,151.47,151.38,14.04056602]
[1745513810605,6.6012,151.43,151.4,14.04056602]
[1745513810902,24.38,151.47,151.4,14.04056602]
[1745513811103,6.6016,151.42,151.4,14.04056602]
[1745513811901,6.6016,151.42,151.38,29.08698942]
[1745513812906,6.6018,151.41,151.38,29.08698942]
[1745513813204,24.38,151.47,151.38,22.48408942]
[1745513813398,46.86408942,151.47,151.35,22.48408942]
[1745513814103,22.48408942,151.44,151.34,24.36]
[1745513814302,24.36,151.43,151.34,24.36]
[1745513814503,24.36,151.43,151.34,30.9646]
[1745513815102,6.6038,151.37,151.34,30.9646]
[1745513815705,24.36,151.43,151.34,24.36]
[1745513815706,6.6041,151.36,151.34,24.36]
[1745513816004,24.36,151.43,151.33,6.6052]
[1745513816199,24.36,151.43,151.32,46.84408942]
[1745513816404,24.36,151.43,151.34,6.6048]
[1745513816904,6.603,151.39,151.34,6.6048]
[1745513817506,24.36,151.43,151.33,6.6051]
[1745513818002,6.6036,151.37,151.33,6.6051]
[1745513818197,24.36,151.39,151.32,24.36]
[1745513818403,22.48408942,151.38,151.25,24.36]
[1745513818603,6.606,151.32,151.26,6.45640116]
[1745513818804,6.606,151.32,151.28,6.6072]
[1745513819006,6.606,151.32,151.27,6.45640116]
[1745513819007,6.6054,151.33,151.25,24.36]
[1745513819205,6.6054,151.33,151.26,6.45708286]
[1745513819407,24.36,151.34,151.29,6.6067]
[1745513820009,6.6058,151.32,151.29,6.6067]
[1745513820211,24.36,151.34,151.3,6.6065]
[1745513820406,3.8881,151.38,151.27,22.48408942]
[1745513820611,24.36,151.37,151.3,22.48408942]
[1745513820905,24.36,151.37,151.31,6.45968394]
[1745513821110,24.36,151.4,151.33,22.48408942]
[1745513821509,6.6029,151.39,151.36,6.6037]
[1745513821706,24.36,151.4,151.33,22.48408942]
[1745513822108,30.9624,151.4,151.37,6.6034]
[1745513822415,30.9624,151.4,151.33,46.84408942]
[1745513822612,30.9624,151.4,151.34,6.46277654]
[1745513822911,22.48408942,151.38,151.29,355.0]
[1745513823714,22.48408942,151.38,151.3,13.07957819]
[1745513823914,22.48408942,151.38,151.3,6.6064]
[1745513824316,22.48408942,151.38,151.31,6.6059]
[1745513824917,6.6046,151.35,151.31,6.6059]
[1745513826117,6.6049,151.34,151.3,6.6063]
[1745513826317,6.6049,151.34,151.31,6.48466074]
[1745513826516,22.48408942,151.38,151.29,24.36]
[1745513826715,6.6051,151.34,151.3,6.48465762]
[1745513826920,22.48408942,151.38,151.29,24.36]
[1745513827215,6.6055,151.33,151.3,6.48595884]
[1745513827416,24.36,151.36,151.29,24.36]
[1745513827818,24.36,151.36,151.27,2.0338]
[1745513828118,24.36,151.36,151.28,6.4921803]
[1745513828308,6.606,151.32,151.29,6.4921803]
[1745513828506,6.606,151.32,151.27,2.0338]
[1745513828507,24.36,151.36,151.27,2.0338]
[1745513828707,24.36,151.36,151.28,6.49608412]
[1745513828907,24.36,151.36,151.29,6.49608412]
[1745513829113,24.36,151.36,151.3,13.10248412]
[1745513829313,24.36,151.36,151.3,6.6064]
[1745513830113,6.6055,151.33,151.3,6.6064]
[1745513832624,6.6066,151.3,151.27,8.6414]
[1745513832920,22.48408942,151.35,151.28,6.4996359]
[1745513833120,22.48408942,151.35,151.26,28.3146]
[1745513833318,22.48408942,151.35,151.29,6.6068]
[1745513834324,6.6062,151.31,151.29,6.6068]
[1745513835725,22.48408942,151.35,151.26,28.3146]
[1745513835919,24.36,151.36,151.27,6.50391437]
[1745513836124,24.36,151.36,151.28,8.47281437]
[1745513836323,6.6046,151.35,151.32,6.6057]
[1745513836629,24.36,151.36,151.32,6.6057]
[1745513836819,6.6052,151.33,151.3,6.6063]
[1745513837927,6.6059,151.32,151.29,6.6069]
[1745513839926,6.6062,151.31,151.29,6.6069]
[1745513840327,24.36,151.36,151.29,6.6069]
[1745513840528,6.606,151.32,151.29,6.6069]
[1745513840722,24.36,151.36,151.29,6.6069]
[1745513840922,28.2863,151.36,151.29,6.6069]
[1745513841429,28.2863,151.36,151.3,6.51092342]
[1745513841627,28.2863,151.36,151.29,6.6069]
[1745513841828,6.6061,151.31,151.3,6.51100018]
[1745513842029,28.2863,151.36,151.26,24.36]
[1745513842230,28.2863,151.36,151.27,6.51223612]
[1745513842428,28.2863,151.36,151.28,6.51223612]
[1745513842631,28.2863,151.36,151.29,6.51223612]
[1745513842831,28.2863,151.36,151.26,24.36]
[1745513843029,28.2863,151.36,151.27,6.514875]
[1745513843234,6.6068,151.3,151.28,13.122075]
[1745513843429,6.6068,151.3,151.28,6.6072]
[1745513843632,6.6068,151.3,151.29,6.51681503]
[1745513843832,6.6062,151.31,151.29,13.12381503]
[1745513844131,6.6062,151.31,151.26,24.36]
[1745513844331,28.2863,151.36,151.26,24.36]
[1745513844332,28.2863,151.36,151.27,6.51700734]
[1745513844532,28.2863,151.36,151.28,13.12430734]
[1745513844732,28.2863,151.36,151.29,6.51700734]
[1745513844934,28.2863,151.36,151.26,24.36]
[1745513845237,6.6066,151.3,151.28,6.6072]
[1745513845433,6.6066,151.3,151.29,6.52074611]
[1745513845836,6.6064,151.31,151.29,13.12764611]
[1745513846034,6.6064,151.31,151.3,6.52074611]
[1745513846931,28.2863,151.36,151.3,6.52074611]
[1745513847138,28.2863,151.36,151.31,6.52410678]
[1745513847340,28.2863,151.36,151.26,38.43723288]
[1745513847640,28.2863,151.36,151.31,6.6059]
[1745513847838,28.2863,151.36,151.32,6.5262592]
[1745513848034,28.2863,151.36,151.31,6.6059]
[1745513848333,28.2863,151.36,151.32,6.52444908]
[1745513848541,28.2863,151.36,151.3,6.6065]
[1745513848735,28.2863,151.36,151.31,6.52839172]
[1745513848936,28.2863,151.36,151.32,6.52839172]
[1745513849136,28.2863,151.36,151.3,6.6065]
[1745513849339,28.2863,151.36,151.31,13.13566009]
[1745513849540,28.2863,151.36,151.32,6.52956009]
[1745513849838,6.6061,151.32,151.29,6.6067]
[1745513850140,6.6061,151.32,151.3,6.53139649]
[1745513850337,6.6061,151.32,151.31,6.53139649]
[1745513850540,6.6055,151.33,151.31,6.53139649]
[1745513850739,6.6055,151.33,151.32,6.53139649]
[1745513852940,6.6067,151.3,151.26,24.36]
[1745513853140,6.6067,151.3,151.28,6.6072]
[1745513853343,6.6067,151.3,151.29,6.53676934]
[1745513856342,6.6063,151.31,151.29,6.53676934]
[1745513856541,6.6063,151.31,151.3,6.53676934]
[1745513858245,6.6063,151.31,151.3,6.54524542]
[1745513860553,30.9663,151.31,151.3,6.54524542]
[1745513862060,24.36,151.31,151.3,6.54524542]
[1745513862253,6.6058,151.32,151.3,6.54524542]
[1745513862457,6.6058,151.32,151.31,6.54524542]
[1745513863354,24.36,151.34,151.31,13.15124542]
[1745513863554,24.36,151.34,151.32,6.54524542]
[1745513863750,30.9648,151.34,151.33,6.56043351]
[1745513865754,30.9648,151.34,151.33,6.56022776]
[1745513867464,30.9648,151.34,151.33,6.5639087]
[1745513869356,26.2642,151.37,151.33,6.56285769]
[1745513869661,24.34,151.37,151.34,6.56285769]
[1745513869860,24.34,151.37,151.35,6.56285769]
[1745513870062,30.9435,151.37,151.36,6.56285769]
[1745513871164,6.6045,151.35,151.32,6.6056]
[1745513871363,6.6045,151.35,151.33,6.55965104]
[1745513871563,6.6045,151.35,151.34,6.55965104]
[1745513872860,6.6068,151.3,151.25,379.34]
[1745513873065,6.6068,151.3,151.25,24.34]
[1745513873267,6.6068,151.3,151.27,6.6076]
[1745513873866,6.607,151.29,151.27,6.6076]
[1745513874070,6.607,151.29,151.26,6.6081]
[1745513874567,6.6067,151.3,151.27,6.6075]
[1745513874965,38.41723288,151.33,151.27,6.6075]
[1745513876368,38.41723288,151.33,151.28,6.6073]
[1745513877670,38.41723288,151.33,151.25,24.34]
[1745513878169,6.6065,151.31,151.25,24.34]
[1745513878668,38.41723288,151.33,151.25,24.34]
[1745513879269,6.6062,151.31,151.25,24.34]
[1745513879464,6.6062,151.31,151.28,6.6071]
[1745513879660,38.41723288,151.33,151.25,24.34]
[1745513880269,6.6064,151.31,151.25,24.34]
[1745513880567,6.6064,151.31,151.28,6.6071]
[1745513880767,38.41723288,151.33,151.25,24.34]
[1745513881069,6.6061,151.32,151.29,6.6067]
[1745513881466,30.9454,151.33,151.25,24.34]
[1745513881768,30.9454,151.33,151.26,14.07723288]
[1745513881969,24.34,151.33,151.26,14.07723288]
[1745513882267,24.34,151.36,151.28,14.07723288]
[1745513882671,6.6044,151.35,151.33,6.605]
[1745513884970,6.6044,151.35,151.32,6.6055]
[1745513885571,6.6044,151.35,151.33,6.6052]
[1745513885771,6.6044,151.35,151.28,14.07723288]
[1745513886968,6.6044,151.35,151.32,6.6054]
[1745513887271,6.6044,151.35,151.28,14.07723288]
[1745513887773,6.6044,151.35,151.32,6.6054]
[1745513887975,24.34,151.36,151.26,14.07723288]
[1745513888676,6.6059,151.32,151.3,6.6065]
[1745513888877,24.34,151.36,151.3,6.6065]
[1745513889277,24.34,151.36,151.26,14.07723288]
[1745513889472,24.34,151.36,151.28,14.07723288]
[1745513889971,6.605,151.34,151.28,14.07723288]
[1745513890776,6.605,151.34,151.32,6.6054]
[1745513890978,24.34,151.36,151.28,14.07723288]
[1745513891276,24.34,151.36,151.3,14.07723288]
[1745513891778,6.6037,151.37,151.3,14.07723288]
[1745513891975,38.41723288,151.39,151.3,19.87053288]
[1745513892371,38.41723288,151.39,151.3,17.89563288]
[1745513892577,14.07723288,151.37,151.28,14.07723288]
[1745513893482,6.6048,151.34,151.28,14.07723288]
[1745513893978,24.34,151.35,151.28,14.07723288]
[1745513894177,24.34,151.35,151.26,42.34063288]
[1745513894577,38.41723288,151.35,151.26,42.34063288]
[1745513894781,14.07723288,151.33,151.26,24.34]
[1745513894982,14.07723288,151.33,151.25,355.0]
[1745513895172,6.6063,151.31,151.27,6.6077]
[1745513895581,14.07723288,151.33,151.27,6.6077]
[1745513896483,6.6068,151.3,151.27,6.6077]
[1745513897173,6.6063,151.31,151.28,6.6074]
[1745513897378,3.8056,151.34,151.26,14.07723288]
[1745513897683,6.6068,151.3,151.27,6.6077]
[1745513898379,6.6063,151.31,151.28,6.6074]
[1745513898683,6.6063,151.31,151.26,14.07723288]
[1745513899280,6.6067,151.3,151.26,14.07723288]
[1745513899485,6.6067,151.3,151.27,6.6075]
[1745513899684,3.8056,151.34,151.26,14.07723288]
[1745513899985,3.8056,151.34,151.27,6.6076]
[1745513900282,6.6078,151.28,151.23,26.2605]
[1745513900484,24.34,151.3,151.23,1.9205]
[1745513900884,6.6081,151.27,151.23,1.9205]
[1745513901188,6.6081,151.27,151.24,6.6089]
[1745513901885,6.6087,151.26,151.23,8.53]
[1745513902087,6.6087,151.26,151.23,6.6095]
[1745513902685,26.3703,151.3,151.24,6.6091]
[1745513904183,6.6083,151.26,151.23,6.6094]
[1745513905584,6.6089,151.25,151.22,6.6099]
[1745513905785,6.6089,151.25,151.2,38.41723288]
[1745513906086,6.6089,151.25,151.22,6.6098]
[1745513906387,14.07723288,151.27,151.2,24.34]
[1745513906587,14.07723288,151.25,151.19,6.6113]
[1745513906786,24.32,151.24,151.19,6.6113]
[1745513908288,24.32,151.24,151.18,14.07723288]
[1745513909088,6.6096,151.23,151.2,6.6105]
[1745513909489,6.6096,151.23,151.18,14.07723288]
[1745513909886,30.9294,151.24,151.21,6.6104]
[1745513910587,30.9294,151.24,151.22,6.61]
[1745513912195,24.32,151.24,151.23,6.6096]
[1745513912386,26.2322,151.27,151.23,6.6096]
[1745513912687,6.6086,151.26,151.23,6.6096]
[1745513912884,6.6086,151.26,151.24,6.6091]
[1745513913390,32.8403,151.27,151.24,6.6091]
[1745513913986,26.2322,151.27,151.24,6.6091]
[1745513914187,1.8922,151.27,151.24,6.6091]
[1745513914489,6.6086,151.26,151.23,6.6094]
[1745513914685,26.2322,151.27,151.23,6.6094]
[1745513915289,6.6085,151.26,151.23,6.6094]
[1745513916192,6.6088,151.25,151.23,6.6094]
[1745513916388,35.24931045,151.27,151.23,6.6094]
[1745513916990,6.6086,151.26,151.23,6.6094]
[1745513919190,6.6086,151.26,151.22,9.01711045]
[1745513919990,6.609,151.25,151.22,15.62681045]
[1745513920291,35.24931045,151.27,151.22,9.01711045]
[1745513920489,1.9722,151.28,151.24,9.01711045]
[1745513920692,24.34,151.29,151.24,9.01711045]
[1745513921091,24.34,151.29,151.25,6.6084]
[1745513922191,6.6081,151.27,151.24,15.62611045]
[1745513922387,24.34,151.29,151.24,9.01711045]
[1745513922583,24.34,151.29,151.27,9.01711045]
[1745513922992,30.9471,151.29,151.27,15.62471045]
[1745513923292,509.15711045,151.32,151.27,15.62471045]
[1745513923793,509.15711045,151.32,151.28,6.6074]
[1745513924293,6.6068,151.3,151.28,6.6074]
[1745513924600,509.15711045,151.32,151.27,15.62481045]
[1745513927997,6.6074,151.29,151.27,9.01711045]
[1745513928999,6.6074,151.29,151.27,15.62491045]
[1745513929898,6.6068,151.3,151.28,6.6074]
[1745513930198,509.15711045,151.32,151.27,9.01711045]
[1745513930398,6.6072,151.29,151.27,9.01711045]
[1745513930899,6.6074,151.28,151.27,9.01711045]
[1745513931494,9.01711045,151.3,151.26,9.01711045]
[1745513931690,9.01711045,151.3,151.25,9.01711045]
[1745513932198,9.01711045,151.3,151.24,15.62611045]
[1745513932400,9.01711045,151.3,151.25,6.6087]
[1745513932992,5.9963,151.34,151.22,1.9187]
[1745513932993,24.32,151.31,151.29,9.01711045]
[1745513933705,12.98141045,151.34,151.29,9.01711045]
[1745513933902,24.32,151.33,151.29,9.01711045]
[1745513934705,24.32,151.33,151.29,15.62411045]
[1745513934895,24.32,151.33,151.29,9.01711045]
[1745513935505,6.6066,151.3,151.27,15.62481045]
[1745513936106,6.6071,151.29,151.27,9.01711045]
[1745513937308,6.6068,151.3,151.27,15.62491045]
[1745513939306,10.94791045,151.32,151.27,15.62491045]
[1745513939307,6.607,151.29,151.27,15.62491045]
[1745513939505,9.01711045,151.3,151.25,9.01711045]
[1745513939805,6.6072,151.29,151.25,9.01711045]
[1745513940105,9.01711045,151.3,151.27,6.6078]
[1745513940505,6.6071,151.29,151.27,6.6078]
[1745513940708,6.6071,151.29,151.26,6.6081]
[1745513942604,6.6075,151.28,151.26,6.6081]
[1745513943405,6.6075,151.28,151.25,15.62571045]
[1745513945608,6.6075,151.28,151.26,6.6082]
[1745513946704,6.6075,151.28,151.25,15.62561045]
[1745513947308,24.32,151.29,151.26,9.01711045]
[1745513947610,24.32,151.29,151.28,9.01711045]
[1745513947805,26.2508,151.32,151.28,15.62451045]
[1745513948011,6.6064,151.31,151.29,9.01711045]
[1745513950109,6.6066,151.3,151.29,9.01711045]
[1745513950511,24.32,151.32,151.29,9.01711045]
[1745513950815,33.33711045,151.32,151.28,9.01711045]
[1745513951014,33.33711045,151.32,151.27,15.62481045]
[1745513951215,6.6068,151.3,151.27,15.62481045]
[1745513952215,6.6063,151.31,151.28,6.6073]
[1745513952416,6.6063,151.31,151.28,15.62441045]
[1745513952917,9.01711045,151.3,151.22,1.9187]
[1745513953116,9.01711045,151.3,151.26,9.01711045]
[1745513953415,6.6072,151.29,151.26,15.62531045]
[1745513953918,6.6075,151.28,151.26,15.62531045]
[1745513955114,33.33711045,151.32,151.27,15.62501045]
[1745513955322,33.33711045,151.32,151.28,9.01711045]
[1745513955910,6.6068,151.3,151.28,9.01711045]
[1745513956820,6.6068,151.3,151.27,15.62501045]
[1745513957320,6.607,151.29,151.27,15.62501045]
[1745513957520,9.01711045,151.31,151.25,15.62571045]
[1745513957721,9.01711045,151.31,151.25,9.01711045]
[1745513957921,6.6073,151.29,151.26,9.01711045]
[1745513958123,9.01711045,151.31,151.26,9.01711045]
[1745513958522,15.62351045,151.31,151.27,6.6078]
[1745513958722,9.01711045,151.32,151.27,9.01711045]
[1745513959120,15.62301045,151.32,151.28,6.6072]
[1745513960325,9.01711045,151.33,151.3,6.6065]
[1745513960622,15.62251045,151.33,151.3,6.6065]
[1745513962622,15.62251045,151.33,151.31,6.606]
[1745513962924,15.62251045,151.33,151.28,9.01711045]
[1745513964024,15.62251045,151.33,151.31,6.6061]
[1745513964725,9.01711045,151.32,151.26,9.01711045]
[1745513965225,15.62301045,151.32,151.29,6.6067]
[1745513966721,6.6061,151.31,151.29,6.6067]
[1745513966926,6.6061,151.31,151.28,6.6072]
[1745513967127,6.6061,151.31,151.26,9.01711045]
[1745513967425,6.6061,151.31,151.28,6.6071]
[1745513967722,9.01711045,151.32,151.28,6.6071]
[1745513968029,9.01711045,151.3,151.27,6.6076]
[1745513968323,6.607,151.29,151.25,33.31711045]
[1745513968521,6.607,151.29,151.26,6.6082]
[1745513969526,15.62381045,151.3,151.27,6.6078]
[1745513970628,6.6072,151.29,151.27,6.6078]
[1745513971229,9.01711045,151.3,151.25,33.31711045]
[1745513971526,9.01711045,151.32,151.27,9.01711045]
[1745513971729,9.01711045,151.32,151.28,6.6072]
[1745513972127,6.6066,151.3,151.28,6.6072]
[1745513972426,6.6066,151.3,151.27,15.62481045]
[1745513972728,6.6066,151.3,151.27,9.01711045]
[1745513973725,9.01711045,151.29,151.25,9.01711045]
[1745513974229,6.6079,151.27,151.25,15.62561045]
[1745513974527,6.6079,151.27,151.25,6.6085]
[1745513974725,6.6083,151.26,151.24,30.909]
[1745513975227,6.6083,151.26,151.24,6.609]
[1745513976230,6.6083,151.26,151.23,6.6094]
[1745513976427,15.62541045,151.26,151.23,6.6094]
[1745513976625,9.01711045,151.24,151.2,33.31711045]
[1745513976826,9.01711045,151.25,151.22,6.6097]
[1745513977830,6.6093,151.24,151.21,6.6103]
[1745513979731,9.01711045,151.24,151.2,24.3]
[1745513979927,9.01711045,151.23,151.2,24.3]
[1745513980233,6.6105,151.22,151.19,15.62821045]
[1745513981035,6.6115,151.19,151.09,105.34256289]
[1745513981336,24.3,151.24,151.18,9.01711045]
[1745513981632,24.3,151.26,151.22,9.01711045]
[1745513981833,24.3,151.27,151.18,5.8317]
[1745513982027,9.01711045,151.23,151.18,5.8317]
[1745513982229,9.01711045,151.23,151.18,21.46031045]
[1745513982734,9.01711045,151.23,151.19,15.62841045]
[1745513983236,9.01711045,151.2,151.12,30.70395429]
[1745513983436,495.68,151.3,151.13,15.63081045]
[1745513983437,9.01711045,151.17,151.13,15.63081045]
[1745513983736,9.01711045,151.17,151.12,9.01711045]
[1745513984135,15.62961045,151.17,151.14,6.6135]
[1745513984336,9.01711045,151.18,151.13,9.01711045]
[1745513984636,9.01711045,151.17,151.13,9.01711045]
[1745513984936,9.01711045,151.17,151.14,6.6135]
[1745513985338,15.62951045,151.17,151.14,6.6135]
[1745513985537,15.62951045,151.17,151.13,6.6138]
[1745513985837,9.01711045,151.17,151.13,15.63091045]
[1745513986132,6.6131,151.15,151.11,11.00911045]
[1745513986338,15.63021045,151.15,151.1,33.31711045]
[1745513986637,9.01711045,151.15,151.1,33.31711045]
[1745513986831,6.6138,151.14,151.11,6.6147]
[1745513987231,24.3,151.18,151.1,33.31711045]
[1745513987232,15.63141045,151.13,151.1,24.3]
[1745513987428,9.01711045,151.13,151.09,6.6155]
[1745513987834,6.6147,151.12,151.09,6.6155]
[1745513988232,6.6141,151.13,151.1,15.63231045]
[1745513988938,6.6145,151.12,151.09,15.63271045]
[1745513989643,6.6149,151.11,151.09,15.63271045]
[1745513989844,6.6149,151.11,151.09,9.01711045]
[1745513990443,6.6153,151.1,151.09,9.01711045]
[1745513990640,9.01711045,151.13,151.08,6.616]
[1745513990841,9.01711045,151.13,151.08,15.63311045]
[1745513991745,6.6151,151.11,151.08,15.63311045]
[1745513992044,9.01711045,151.11,151.06,9.01711045]
[1745513992645,9.01711045,151.13,151.09,9.01711045]
[1745513992945,6.6149,151.11,151.09,9.01711045]
[1745513995646,6.6149,151.11,151.09,6.6157]
[1745513995852,6.6146,151.12,151.09,6.6157]
[1745513996048,9.01711045,151.13,151.08,9.01711045]
[1745513996240,33.33711045,151.14,151.09,9.01711045]